[Event "Early-Titled-Tuesday-Blitz-February-13-2024"]
[Site "Chess.com"]
[Date "2024.02.13"]
[Round "11"]
[White "Zampronha1971"]
[Black "IngOscarArdila"]
[Result "1-0"]
[WhiteElo "2319"]
[BlackElo "2289"]
[TimeControl "180+1"]
[EndTime "10:11:43 PST"]
[Termination "Zampronha1971 won on time"]

1. e4 {[%clk 0:03:00.9]} 1... e5 {[%clk 0:02:59.9]} 2. Nf3 {[%clk 0:03:01]} 2...
Nf6 {[%clk 0:03:00.2]} 3. d4 {[%clk 0:03:01.2]} 3... Nxe4 {[%clk 0:02:58.2]} 4.
Bd3 {[%clk 0:03:01.8]} 4... d5 {[%clk 0:02:57.5]} 5. Nxe5 {[%clk 0:03:02.2]}
5... Nd7 {[%clk 0:02:57.2]} 6. Nxd7 {[%clk 0:03:01.7]} 6... Bxd7 {[%clk
0:02:57.2]} 7. O-O {[%clk 0:03:02]} 7... Be7 {[%clk 0:02:56.8]} 8. c4 {[%clk
0:03:01.3]} 8... c6 {[%clk 0:02:55.3]} 9. Nc3 {[%clk 0:03:01.8]} 9... Nxc3
{[%clk 0:02:54.8]} 10. bxc3 {[%clk 0:03:01.8]} 10... dxc4 {[%clk 0:02:55.2]} 11.
Bxc4 {[%clk 0:02:50.7]} 11... O-O {[%clk 0:02:55]} 12. Re1 {[%clk 0:02:44.6]}
12... Bf6 {[%clk 0:02:54.5]} 13. Rb1 {[%clk 0:02:30.6]} 13... b5 {[%clk
0:02:54]} 14. Bd3 {[%clk 0:02:29.8]} 14... Qa5 {[%clk 0:02:48.5]} 15. Qc2 {[%clk
0:02:26]} 15... h6 {[%clk 0:02:44]} 16. Bd2 {[%clk 0:02:26.6]} 16... Qa3 {[%clk
0:02:17.8]} 17. d5 {[%clk 0:01:42.4]} 17... cxd5 {[%clk 0:02:08.7]} 18. Bxb5
{[%clk 0:01:43]} 18... Bxb5 {[%clk 0:02:06.6]} 19. Rxb5 {[%clk 0:01:43.9]} 19...
Rad8 {[%clk 0:01:50.3]} 20. Qb3 {[%clk 0:01:35]} 20... Qd6 {[%clk 0:01:41.5]}
21. Rb7 {[%clk 0:01:29]} 21... Qa6 {[%clk 0:01:32.8]} 22. Be3 {[%clk 0:01:26.1]}
22... Rc8 {[%clk 0:01:28]} 23. Rxa7 {[%clk 0:01:24.9]} 23... Qd3 {[%clk
0:01:26.9]} 24. Rd1 {[%clk 0:01:18.1]} 24... Qe4 {[%clk 0:01:21.3]} 25. Bd4
{[%clk 0:01:12.5]} 25... Bxd4 {[%clk 0:01:13.5]} 26. cxd4 {[%clk 0:01:13.4]}
26... Rc2 {[%clk 0:01:06.9]} 27. Qf3 {[%clk 0:01:07.4]} 27... Qxf3 {[%clk
0:01:00.3]} 28. gxf3 {[%clk 0:01:08.3]} 28... Re8 {[%clk 0:00:57.7]} 29. Rd7
{[%clk 0:00:57]} 29... Ree2 {[%clk 0:00:57.5]} 30. Rf1 {[%clk 0:00:57.6]} 30...
Rxa2 {[%clk 0:00:57.7]} 31. Rxd5 {[%clk 0:00:58]} 31... Kf8 {[%clk 0:00:55.6]}
32. Kg2 {[%clk 0:00:57.5]} 32... Ke7 {[%clk 0:00:54.9]} 33. Re5+ {[%clk
0:00:54.8]} 33... Rxe5 {[%clk 0:00:46.1]} 34. dxe5 {[%clk 0:00:55.7]} 34... Ke6
{[%clk 0:00:46.8]} 35. Re1 {[%clk 0:00:55]} 35... Kf5 {[%clk 0:00:39]} 36. Kg3
{[%clk 0:00:53.1]} 36... Ra4 {[%clk 0:00:37.1]} 37. f4 {[%clk 0:00:53.5]} 37...
Rxf4 {[%clk 0:00:35.7]} 38. Rb1 {[%clk 0:00:48]} 38... Rg4+ {[%clk 0:00:35.1]}
39. Kf3 {[%clk 0:00:48.3]} 39... Rc4 {[%clk 0:00:29.5]} 40. Rb7 {[%clk
0:00:45.8]} 40... Rc3+ {[%clk 0:00:25.8]} 41. Kg2 {[%clk 0:00:44.5]} 41... Ke6
{[%clk 0:00:22.7]} 42. f3 {[%clk 0:00:40.9]} 42... g5 {[%clk 0:00:22]} 43. Kg3
{[%clk 0:00:39.7]} 43... Rc4 {[%clk 0:00:21.3]} 44. Rb6+ {[%clk 0:00:33.6]}
44... Kxe5 {[%clk 0:00:20.6]} 45. Rxh6 {[%clk 0:00:34.5]} 45... f6 {[%clk
0:00:20.3]} 46. Rh8 {[%clk 0:00:33.2]} 46... Rc1 {[%clk 0:00:19.7]} 47. Re8+
{[%clk 0:00:33.3]} 47... Kf5 {[%clk 0:00:20.2]} 48. Rb8 {[%clk 0:00:32.2]} 48...
Rg1+ {[%clk 0:00:20.1]} 49. Kf2 {[%clk 0:00:32.8]} 49... Rh1 {[%clk 0:00:20.6]}
50. Kg2 {[%clk 0:00:32.9]} 50... Rc1 {[%clk 0:00:20.1]} 51. Rb4 {[%clk
0:00:33.3]} 51... Rc2+ {[%clk 0:00:19]} 52. Kg3 {[%clk 0:00:33.7]} 52... Rc3
{[%clk 0:00:18.9]} 53. Ra4 {[%clk 0:00:31.9]} 53... Rc2 {[%clk 0:00:18.8]} 54.
Ra5+ {[%clk 0:00:32.4]} 54... Kg6 {[%clk 0:00:19]} 55. h3 {[%clk 0:00:32.7]}
55... Rc4 {[%clk 0:00:17.5]} 56. Rb5 {[%clk 0:00:31.9]} 56... Rf4 {[%clk
0:00:17.1]} 57. Rb8 {[%clk 0:00:31.4]} 57... Kf5 {[%clk 0:00:17]} 58. Rb6 {[%clk
0:00:29.4]} 58... Rc4 {[%clk 0:00:15.6]} 59. Rb5+ {[%clk 0:00:29.7]} 59... Kg6
{[%clk 0:00:15.7]} 60. Ra5 {[%clk 0:00:28.7]} 60... Rd4 {[%clk 0:00:15.4]} 61.
Rc5 {[%clk 0:00:28.3]} 61... Rb4 {[%clk 0:00:15.3]} 62. Rc8 {[%clk 0:00:25.9]}
62... Rd4 {[%clk 0:00:15]} 63. Rg8+ {[%clk 0:00:26.5]} 63... Kf5 {[%clk
0:00:15.2]} 64. Rh8 {[%clk 0:00:27.1]} 64... Rb4 {[%clk 0:00:14.3]} 65. Rh6
{[%clk 0:00:26.6]} 65... Rd4 {[%clk 0:00:13.5]} 66. Rh7 {[%clk 0:00:26.7]} 66...
Rb4 {[%clk 0:00:13.1]} 67. Re7 {[%clk 0:00:26.6]} 67... Rd4 {[%clk 0:00:13]} 68.
Re2 {[%clk 0:00:27.3]} 68... Rb4 {[%clk 0:00:12.9]} 69. Rd2 {[%clk 0:00:25.4]}
69... Rc4 {[%clk 0:00:12.6]} 70. Rb2 {[%clk 0:00:25.6]} 70... Ra4 {[%clk
0:00:12.5]} 71. Rc2 {[%clk 0:00:26.1]} 71... Rb4 {[%clk 0:00:12.4]} 72. Rh2
{[%clk 0:00:24.3]} 72... Rd4 {[%clk 0:00:12]} 73. Rf2 {[%clk 0:00:24.2]} 73...
Rf4 {[%clk 0:00:11.5]} 74. Rc2 {[%clk 0:00:23]} 74... Rd4 {[%clk 0:00:11.2]} 75.
Rc5+ {[%clk 0:00:23.5]} 75... Kg6 {[%clk 0:00:11.1]} 76. Rc8 {[%clk 0:00:22.2]}
76... Rb4 {[%clk 0:00:09.6]} 77. Re8 {[%clk 0:00:22.6]} 77... Rd4 {[%clk
0:00:08.8]} 78. Re4 {[%clk 0:00:20.9]} 78... Rd1 {[%clk 0:00:06]} 79. Rc4 {[%clk
0:00:20]} 79... Kf5 {[%clk 0:00:05.3]} 80. Rb4 {[%clk 0:00:19.3]} 80... Rg1+
{[%clk 0:00:04.8]} 81. Kf2 {[%clk 0:00:18.7]} 81... Rh1 {[%clk 0:00:04.7]} 82.
Kg2 {[%clk 0:00:19.2]} 82... Rc1 {[%clk 0:00:04.5]} 83. Ra4 {[%clk 0:00:19.8]}
83... Rc2+ {[%clk 0:00:03.9]} 84. Kg3 {[%clk 0:00:18.8]} 84... Rc1 {[%clk
0:00:04.1]} 85. h4 {[%clk 0:00:19.2]} 85... gxh4+ {[%clk 0:00:01.7]} 86. Kxh4
{[%clk 0:00:19]} 86... Rg1 {[%clk 0:00:01.2]} 87. Kh3 {[%clk 0:00:19.1]} 1-0

[Event "Early-Titled-Tuesday-Blitz-February-13-2024"]
[Site "Chess.com"]
[Date "2024.02.13"]
[Round "11"]
[White "MokshAD1603"]
[Black "GelmanAlexander"]
[Result "0-1"]
[WhiteElo "2611"]
[BlackElo "2765"]
[TimeControl "180+1"]
[EndTime "10:11:46 PST"]
[Termination "GelmanAlexander won by checkmate"]

1. e4 {[%clk 0:03:00.9]} 1... c5 {[%clk 0:02:59.8]} 2. Nf3 {[%clk 0:02:58.3]}
2... e6 {[%clk 0:03:00.2]} 3. d4 {[%clk 0:02:58.1]} 3... cxd4 {[%clk 0:03:00.6]}
4. Nxd4 {[%clk 0:02:59]} 4... a6 {[%clk 0:03:01.1]} 5. c4 {[%clk 0:02:56.7]}
5... d6 {[%clk 0:03:01.5]} 6. Nc3 {[%clk 0:02:57]} 6... Nf6 {[%clk 0:03:02.1]}
7. Be2 {[%clk 0:02:53.9]} 7... b6 {[%clk 0:03:02.3]} 8. f4 {[%clk 0:02:45.5]}
8... Bb7 {[%clk 0:03:02.3]} 9. Bf3 {[%clk 0:02:45.6]} 9... Nbd7 {[%clk
0:03:02.7]} 10. O-O {[%clk 0:02:45.4]} 10... Rc8 {[%clk 0:02:59.4]} 11. Qe2
{[%clk 0:02:38.8]} 11... Qc7 {[%clk 0:02:57.4]} 12. b3 {[%clk 0:02:31.9]} 12...
b5 {[%clk 0:02:55.4]} 13. Be3 {[%clk 0:01:32.2]} 13... b4 {[%clk 0:02:47.2]} 14.
Nd5 {[%clk 0:01:21.8]} 14... exd5 {[%clk 0:02:47.3]} 15. exd5 {[%clk 0:01:22]}
15... Be7 {[%clk 0:02:46.1]} 16. Nf5 {[%clk 0:01:21.5]} 16... Nc5 {[%clk
0:02:22.2]} 17. Nxg7+ {[%clk 0:01:18.6]} 17... Kf8 {[%clk 0:02:22.5]} 18. Nf5
{[%clk 0:01:18.3]} 18... Rg8 {[%clk 0:02:12.8]} 19. Bd4 {[%clk 0:01:17.7]} 19...
Re8 {[%clk 0:02:03.7]} 20. Rae1 {[%clk 0:01:15.8]} 20... Bd8 {[%clk 0:01:57.6]}
21. Qd2 {[%clk 0:01:06.9]} 21... Bc8 {[%clk 0:01:55]} 22. Ng3 {[%clk 0:01:00.1]}
22... Rxe1 {[%clk 0:01:23.9]} 23. Rxe1 {[%clk 0:01:00.1]} 23... Ng4 {[%clk
0:01:10.7]} 24. f5 {[%clk 0:00:52.9]} 24... Bg5 {[%clk 0:01:05]} 25. Qe2 {[%clk
0:00:37.3]} 25... Ne5 {[%clk 0:00:56.5]} 26. Bh5 {[%clk 0:00:36.4]} 26... Bf4
{[%clk 0:00:48.8]} 27. Rf1 {[%clk 0:00:35.2]} 27... Bxg3 {[%clk 0:00:44.9]} 28.
hxg3 {[%clk 0:00:36.1]} 28... Rxg3 {[%clk 0:00:42.8]} 29. Qd2 {[%clk 0:00:35.3]}
29... f6 {[%clk 0:00:29.2]} 30. Be3 {[%clk 0:00:21.4]} 30... Rxe3 {[%clk
0:00:21.3]} 31. Qxe3 {[%clk 0:00:21.3]} 31... Qg7 {[%clk 0:00:20.3]} 32. Kh1
{[%clk 0:00:13.1]} 32... a5 {[%clk 0:00:19.1]} 33. Be2 {[%clk 0:00:13.6]} 33...
Bd7 {[%clk 0:00:14.6]} 34. Qh3 {[%clk 0:00:14.1]} 34... Be8 {[%clk 0:00:14.3]}
35. Rf4 {[%clk 0:00:14.6]} 35... Qg5 {[%clk 0:00:12.5]} 36. Qh4 {[%clk 0:00:13]}
36... h6 {[%clk 0:00:11.1]} 37. Qxg5 {[%clk 0:00:13.2]} 37... hxg5 {[%clk
0:00:12]} 38. Rf1 {[%clk 0:00:14.1]} 38... Ke7 {[%clk 0:00:11.6]} 39. Kg1 {[%clk
0:00:14.8]} 39... a4 {[%clk 0:00:09.8]} 40. Kf2 {[%clk 0:00:15.4]} 40... axb3
{[%clk 0:00:09.3]} 41. axb3 {[%clk 0:00:16.3]} 41... Nxb3 {[%clk 0:00:07.1]} 42.
Rb1 {[%clk 0:00:16.5]} 42... Nc5 {[%clk 0:00:08]} 43. Ke3 {[%clk 0:00:15.7]}
43... b3 {[%clk 0:00:08.5]} 44. Kd4 {[%clk 0:00:15.3]} 44... Ba4 {[%clk
0:00:08.1]} 45. Bd1 {[%clk 0:00:15.4]} 45... Kd7 {[%clk 0:00:08.2]} 46. Ra1
{[%clk 0:00:15.2]} 46... Kc7 {[%clk 0:00:08.2]} 47. Kc3 {[%clk 0:00:15.2]} 47...
Kb6 {[%clk 0:00:08.7]} 48. Rb1 {[%clk 0:00:15.4]} 48... Ka5 {[%clk 0:00:08.8]}
49. Be2 {[%clk 0:00:15.9]} 49... Bd7 {[%clk 0:00:07.2]} 50. Ra1+ {[%clk
0:00:13.4]} 50... Kb6 {[%clk 0:00:07.1]} 51. Bd1 {[%clk 0:00:13.7]} 51... Bxf5
{[%clk 0:00:06.2]} 52. Bxb3 {[%clk 0:00:13.6]} 52... Be4 {[%clk 0:00:04.9]} 53.
Bc2 {[%clk 0:00:13.5]} 53... Bxc2 {[%clk 0:00:03.6]} 54. Kxc2 {[%clk 0:00:14.4]}
54... f5 {[%clk 0:00:04.4]} 55. Kc3 {[%clk 0:00:14.1]} 55... f4 {[%clk
0:00:04.6]} 56. Rb1+ {[%clk 0:00:14.3]} 56... Ka5 {[%clk 0:00:04.2]} 57. Rh1
{[%clk 0:00:15.2]} 57... g4 {[%clk 0:00:04.1]} 58. Rh8 {[%clk 0:00:13.8]} 58...
f3 {[%clk 0:00:04.3]} 59. gxf3 {[%clk 0:00:14.7]} 59... gxf3 {[%clk 0:00:04.8]}
60. Rf8 {[%clk 0:00:14.1]} 60... f2 {[%clk 0:00:04.5]} 61. Kc2 {[%clk
0:00:14.1]} 61... Ncd3 {[%clk 0:00:04.1]} 62. Kd2 {[%clk 0:00:14.2]} 62... Kb4
{[%clk 0:00:04.5]} 63. Ke2 {[%clk 0:00:12.7]} 63... Kxc4 {[%clk 0:00:05]} 64.
Rf6 {[%clk 0:00:13.3]} 64... Kxd5 {[%clk 0:00:05.5]} 65. Rf8 {[%clk 0:00:13.4]}
65... Ke4 {[%clk 0:00:06]} 66. Rf6 {[%clk 0:00:13.4]} 66... d5 {[%clk
0:00:06.6]} 67. Rf8 {[%clk 0:00:14]} 67... d4 {[%clk 0:00:07]} 68. Rh8 {[%clk
0:00:14.2]} 68... Kd5 {[%clk 0:00:06.4]} 69. Rd8+ {[%clk 0:00:13.9]} 69... Kc4
{[%clk 0:00:07]} 70. Rc8+ {[%clk 0:00:14.6]} 70... Kb3 {[%clk 0:00:07.3]} 71.
Rb8+ {[%clk 0:00:14.9]} 71... Kc4 {[%clk 0:00:07.8]} 72. Rc8+ {[%clk 0:00:15.4]}
72... Kd5 {[%clk 0:00:08.7]} 73. Rd8+ {[%clk 0:00:15.9]} 73... Ke4 {[%clk
0:00:09.2]} 74. Rh8 {[%clk 0:00:15.8]} 74... Ng4 {[%clk 0:00:08.7]} 75. Re8+
{[%clk 0:00:15.6]} 75... Nde5 {[%clk 0:00:09.6]} 76. Rh8 {[%clk 0:00:15.2]}
76... d3+ {[%clk 0:00:10.5]} 77. Kf1 {[%clk 0:00:14.7]} 77... d2 {[%clk
0:00:10.5]} 78. Rd8 {[%clk 0:00:15.3]} 78... d1=Q+ {[%clk 0:00:10.8]} 79. Rxd1
{[%clk 0:00:15.2]} 79... Kf3 {[%clk 0:00:09.8]} 80. Rd3+ {[%clk 0:00:14.3]}
80... Ne3+ {[%clk 0:00:10.2]} 81. Rxe3+ {[%clk 0:00:14.1]} 81... Kxe3 {[%clk
0:00:11.1]} 82. Kg2 {[%clk 0:00:14.7]} 82... Ke2 {[%clk 0:00:12]} 83. Kh1 {[%clk
0:00:13.6]} 83... f1=Q+ {[%clk 0:00:12.1]} 84. Kh2 {[%clk 0:00:14.2]} 84... Qf4+
{[%clk 0:00:12.1]} 85. Kg2 {[%clk 0:00:14.1]} 85... Qg4+ {[%clk 0:00:12.6]} 86.
Kh1 {[%clk 0:00:14.2]} 86... Kf2 {[%clk 0:00:13.2]} 87. Kh2 {[%clk 0:00:14.4]}
87... Qg2# {[%clk 0:00:14.1]} 0-1

[Event "Early-Titled-Tuesday-Blitz-February-13-2024"]
[Site "Chess.com"]
[Date "2024.02.13"]
[Round "11"]
[White "kylelancman"]
[Black "aghasiyevkamal"]
[Result "0-1"]
[WhiteElo "2450"]
[BlackElo "2628"]
[TimeControl "180+1"]
[EndTime "10:11:52 PST"]
[Termination "aghasiyevkamal won by resignation"]

1. e4 {[%clk 0:03:00.9]} 1... c5 {[%clk 0:02:53.9]} 2. Nf3 {[%clk 0:03:00]} 2...
d6 {[%clk 0:02:53]} 3. Bb5+ {[%clk 0:02:58.7]} 3... Bd7 {[%clk 0:02:51.8]} 4.
Bxd7+ {[%clk 0:02:58.2]} 4... Qxd7 {[%clk 0:02:49.6]} 5. c4 {[%clk 0:02:56]}
5... g6 {[%clk 0:02:49.4]} 6. Nc3 {[%clk 0:02:54.4]} 6... Bg7 {[%clk 0:02:49.1]}
7. d4 {[%clk 0:02:55]} 7... cxd4 {[%clk 0:02:48.6]} 8. Nxd4 {[%clk 0:02:55.9]}
8... Nf6 {[%clk 0:02:48.5]} 9. f3 {[%clk 0:02:55.6]} 9... O-O {[%clk 0:02:48.5]}
10. Be3 {[%clk 0:02:55.5]} 10... Rc8 {[%clk 0:02:43]} 11. b3 {[%clk 0:02:53.9]}
11... Nc6 {[%clk 0:02:24.9]} 12. O-O {[%clk 0:02:52.2]} 12... Nh5 {[%clk
0:02:14.5]} 13. Qd2 {[%clk 0:02:43.3]} 13... Nxd4 {[%clk 0:01:49.9]} 14. Bxd4
{[%clk 0:02:44.2]} 14... Bxd4+ {[%clk 0:01:47.9]} 15. Qxd4 {[%clk 0:02:45.1]}
15... Qc6 {[%clk 0:01:48]} 16. Nd5 {[%clk 0:02:42.5]} 16... Re8 {[%clk
0:01:48.1]} 17. Rac1 {[%clk 0:02:31.6]} 17... e6 {[%clk 0:01:46.9]} 18. g4
{[%clk 0:02:18.6]} 18... exd5 {[%clk 0:01:35.5]} 19. cxd5 {[%clk 0:02:19.5]}
19... Nf4 {[%clk 0:01:28.8]} 20. dxc6 {[%clk 0:02:06]} 20... Ne2+ {[%clk
0:01:16.7]} 21. Kf2 {[%clk 0:02:06.4]} 21... Nxd4 {[%clk 0:01:16.5]} 22. cxb7
{[%clk 0:02:05.2]} 22... Rab8 {[%clk 0:01:15.3]} 23. Rfd1 {[%clk 0:02:02]} 23...
Ne6 {[%clk 0:01:10.5]} 24. Rxd6 {[%clk 0:01:56.4]} 24... Rxb7 {[%clk 0:01:10.7]}
25. Ke3 {[%clk 0:01:54.5]} 25... Ra8 {[%clk 0:01:05.8]} 26. h4 {[%clk
0:01:50.8]} 26... a5 {[%clk 0:01:02.8]} 27. h5 {[%clk 0:01:46.4]} 27... g5
{[%clk 0:01:00.6]} 28. h6 {[%clk 0:01:44.4]} 28... Kf8 {[%clk 0:00:59.3]} 29.
Rc4 {[%clk 0:01:40.6]} 29... a4 {[%clk 0:00:52.6]} 30. Rxa4 {[%clk 0:01:36.7]}
30... Rxa4 {[%clk 0:00:52.1]} 31. bxa4 {[%clk 0:01:37.4]} 31... Ra7 {[%clk
0:00:51.5]} 32. Rb6 {[%clk 0:01:31.4]} 32... Rxa4 {[%clk 0:00:49]} 33. Rb8+
{[%clk 0:01:31.6]} 33... Ke7 {[%clk 0:00:48.9]} 34. Rh8 {[%clk 0:01:32.3]} 34...
Ra3+ {[%clk 0:00:43.6]} 35. Kf2 {[%clk 0:01:32.3]} 35... Rxa2+ {[%clk
0:00:43.7]} 36. Kf1 {[%clk 0:01:33]} 36... Nf8 {[%clk 0:00:33.8]} 37. Rg8 {[%clk
0:01:27]} 37... Ng6 {[%clk 0:00:30.7]} 38. Rg7 {[%clk 0:01:23.5]} 38... Rh2
{[%clk 0:00:30.5]} 39. Rxh7 {[%clk 0:01:22.7]} 39... Kf8 {[%clk 0:00:30.3]} 40.
Kg1 {[%clk 0:01:17.1]} 40... Rh4 {[%clk 0:00:26.4]} 41. Kg2 {[%clk 0:01:15.9]}
41... Ke7 {[%clk 0:00:25]} 42. Kg3 {[%clk 0:01:13.4]} 42... Kf6 {[%clk
0:00:24.8]} 43. Kg2 {[%clk 0:01:08.9]} 43... Nf4+ {[%clk 0:00:20.4]} 44. Kg3
{[%clk 0:01:09]} 44... Kg6 {[%clk 0:00:19.2]} 45. Rg7+ {[%clk 0:01:06]} 45...
Kxh6 {[%clk 0:00:19.3]} 46. Rxf7 {[%clk 0:01:05.7]} 46... Rh3+ {[%clk
0:00:19.5]} 47. Kf2 {[%clk 0:01:05.6]} 47... Rh2+ {[%clk 0:00:19.8]} 48. Ke3
{[%clk 0:01:04.1]} 48... Re2+ {[%clk 0:00:19.7]} 49. Kd4 {[%clk 0:01:03.8]}
49... Ra2 {[%clk 0:00:18.4]} 50. Rf6+ {[%clk 0:01:00.5]} 50... Kg7 {[%clk
0:00:18.4]} 51. Rf5 {[%clk 0:01:00.4]} 51... Kg6 {[%clk 0:00:18.8]} 52. Ke3
{[%clk 0:00:58.7]} 52... Ra3+ {[%clk 0:00:18.3]} 53. Kf2 {[%clk 0:00:58.2]}
53... Ne6 {[%clk 0:00:15.8]} 54. Rd5 {[%clk 0:00:51.7]} 54... Ra2+ {[%clk
0:00:14]} 55. Ke3 {[%clk 0:00:51]} 55... Ra3+ {[%clk 0:00:14.4]} 56. Kf2 {[%clk
0:00:51.1]} 56... Kf6 {[%clk 0:00:14.6]} 57. Rf5+ {[%clk 0:00:50.2]} 57... Ke7
{[%clk 0:00:15.1]} 58. Rd5 {[%clk 0:00:50.4]} 58... Rb3 {[%clk 0:00:14.7]} 59.
Rd2 {[%clk 0:00:43.5]} 59... Kf6 {[%clk 0:00:14.2]} 60. Rd5 {[%clk 0:00:43.1]}
60... Rc3 {[%clk 0:00:14.5]} 61. Rf5+ {[%clk 0:00:43]} 61... Ke7 {[%clk
0:00:14.1]} 62. Rd5 {[%clk 0:00:43.1]} 62... Rc5 {[%clk 0:00:14.2]} 63. Rd2
{[%clk 0:00:31.4]} 63... Kf6 {[%clk 0:00:13.9]} 64. Kg3 {[%clk 0:00:28.7]} 64...
Ke5 {[%clk 0:00:13.5]} 65. Rd7 {[%clk 0:00:25.6]} 65... Rc1 {[%clk 0:00:12.4]}
66. Re7 {[%clk 0:00:22.1]} 66... Rc7 {[%clk 0:00:12.1]} 67. Re8 {[%clk
0:00:20.6]} 67... Kf6 {[%clk 0:00:11.4]} 68. Rg8 {[%clk 0:00:18.9]} 68... Nd4
{[%clk 0:00:10.8]} 69. Rd8 {[%clk 0:00:16.2]} 69... Ne6 {[%clk 0:00:09.9]} 70.
Rg8 {[%clk 0:00:14.7]} 70... Rc5 {[%clk 0:00:10.5]} 71. Kf2 {[%clk 0:00:13.2]}
71... Ra5 {[%clk 0:00:10.2]} 72. Ke3 {[%clk 0:00:10.8]} 72... Ra3+ {[%clk
0:00:10.1]} 73. Kf2 {[%clk 0:00:10.9]} 73... Nf4 {[%clk 0:00:09.8]} 74. Rf8+
{[%clk 0:00:10]} 74... Ke6 {[%clk 0:00:08.8]} 75. Rf5 {[%clk 0:00:09.5]} 75...
Ra2+ {[%clk 0:00:07.3]} 76. Ke3 {[%clk 0:00:09.1]} 76... Ng2+ {[%clk 0:00:06.7]}
77. Kd4 {[%clk 0:00:08.2]} 77... Ne1 {[%clk 0:00:06.1]} 78. f4 {[%clk
0:00:06.9]} 78... Nf3+ {[%clk 0:00:05.5]} 79. Ke3 {[%clk 0:00:06.6]} 79... Ra3+
{[%clk 0:00:05.9]} 80. Kf2 {[%clk 0:00:07.2]} 80... gxf4 {[%clk 0:00:05.6]} 81.
Rxf4 {[%clk 0:00:07.4]} 81... Ng5 {[%clk 0:00:06.1]} 82. Rf5 {[%clk 0:00:06.3]}
82... Nxe4+ {[%clk 0:00:05.9]} 83. Kg2 {[%clk 0:00:06]} 83... Nf6 {[%clk
0:00:05.1]} 84. Rf3 {[%clk 0:00:05.4]} 84... Ra2+ {[%clk 0:00:04.6]} 85. Kg3
{[%clk 0:00:05.4]} 85... Ra1 {[%clk 0:00:05.3]} 86. Rf2 {[%clk 0:00:05.2]} 86...
Ne4+ {[%clk 0:00:05.5]} 87. Kf3 {[%clk 0:00:05.6]} 87... Nxf2 {[%clk 0:00:05.8]}
0-1